Cogmind - Beta 13 @@@ ROGUE MODE // 2024.06.08 @ 11:03:20 Player: Barbarossa Result: Destroyed by Y-45 Defender with Heavy Assault Rifle Performance ------------- Evolutions (1) 500 Regions Visited (2) 400 Robots Destroyed (39) 195 Value Destroyed (692) 692 Prototype IDs (2) 40 Alien Tech Used (0) 0 Bonus (12) 12 TOTAL SCORE: 1839 Bonus ------- High Alert Combat Kills 12 Cogmind --------- Core Integrity 0/400 Matter 253/300 Energy 472/515 System Corruption 6% Temperature Warm (160) Movement Rolling (115) Ox1 Location -9/Materials Parts ------- > --- POWER (1) -------- Improved Ion Engine > --- PROPULSION (4) --- Light Treads Compact Wheel Compact Wheel > --- UTILITY (2) ------ High-capacity Storage Unit High-capacity Battery > --- WEAPON (2) ------- Beam Rifle Heavy Assault Rifle > --- INVENTORY (20) --- Improved Ion Engine Reinforced Ion Engine Cooled Ion Engine Cooled Ion Engine Cooled Ion Engine Light Treads Compact Wheel Compact Wheel High-capacity Storage Unit High-capacity Battery (250) High-capacity Matter Pod (200) High-capacity Matter Pod (72) Signal Interpreter Small Laser Light Assault Rifle Light Assault Rifle Light Assault Rifle Heavy Assault Rifle Improved Assault Rifle Datajack Peak State ------------ > --- POWER ------------ Improved Ion Engine > --- PROPULSION ------- Light Treads Light Treads Wheel Compact Wheel > --- UTILITY ---------- High-capacity Storage Unit High-capacity Battery > --- WEAPON ----------- Beam Rifle Heavy Assault Rifle > --- INVENTORY -------- Improved Ion Engine Reinforced Ion Engine Cooled Ion Engine Cooled Ion Engine Cooled Ion Engine Light Treads Compact Wheel Compact Wheel High-capacity Storage Unit High-capacity Battery High-capacity Matter Pod High-capacity Matter Pod Signal Interpreter Small Laser Light Assault Rifle Light Assault Rifle Light Assault Rifle Light Assault Rifle Improved Assault Rifle Datajack [Rating: 15] Favorites ----------- Power Heavy Ion Engine Engine Heavy Ion Engine Propulsion Compact Wheel Treads Light Treads Leg Aluminum Leg Wheel Compact Wheel Utility High-capacity Battery Storage High-capacity Battery Weapon Light Cannon Energy Gun Beam Rifle Ballistic Gun Assault Rifle Ballistic Cannon Light Cannon Build | -11 -10 -9 ------- Run | Yrd Mat Mat Slots Evolved 2 | . . 2 Power . | . . . Propulsion 2 | . . 2 Utility . | . . . Weapon . | . . . Parts Attached 28 | 2 7 19 Power 3 | . 1 2 Engine 3 | . 1 2 Core . | . . . Reactor . | . . . Propulsion 13 | . 2 11 Treads 4 | . . 4 Leg . | . . . Wheel 9 | . 2 7 Hover . | . . . Flight . | . . . Utility 3 | . 2 1 Device . | . . . Storage 3 | . 2 1 Processor . | . . . Hackware . | . . . Protection . | . . . Artifact . | . . . Weapon 9 | 2 2 5 Energy Gun 4 | 2 . 2 Energy Cannon . | . . . Ballistic Gun 3 | . 1 2 Ballistic Cannon 2 | . 1 1 Launcher . | . . . Special Weapon . | . . . Impact Weapon . | . . . Slashing Weapon . | . . . Piercing Weapon . | . . . Special Melee Weapon . | . . . Unidentified Prototypes 2 | . . 2 Parts Lost 11 | . 2 9 Power 2 | . 1 1 Propulsion 5 | . . 5 Utility . | . . . Weapon 4 | . 1 3 Highest Loss Streak 5 | . 1 5 To Critical Strikes . | . . . Average Slot Usage (%) 88 | . 92 87 Engine 11 | . 13 11 Treads 9 | . . 14 Leg 2 | . 7 . Wheel 20 | . 20 20 Storage 22 | . 24 22 Energy Gun 4 | . 8 2 Ballistic Gun 9 | . 7 10 Ballistic Cannon 5 | . 8 5 Naked Turns . | . . . Heaviest Build 57 | 12 24 57 Greatest Support 32 | 20 26 32 Greatest Overweight (x) 3 | . . 3 Average Overweight (x) . | . . 1 Largest Inventory Capacity 20 | 8 10 20 Average Capacity 14 | 8 9 16 Most Carried 20 | 7 10 20 Average Carried 11 | 6 9 12 Final Capacity 20 | 8 10 20 Final Carried 20 | 6 10 20 Class Distribution -------------------- 72% | Mutant 27% | Scavenger-Mutant Dominant Class ---------------- Mutant | -10/Materials Mutant | -9/Materials Resources | -11 -10 -9 ----------- Run | Yrd Mat Mat Matter Collected 1356 | 200 120 1036 Remotely . | . . . Salvage Created 1237 | . 227 1010 Parts 84 | . 21 63 Haulers Intercepted 4 | . 1 3 Recyclers Shooed 3 | . . 3 Parts Field Recycled . | . . . Retrieved Matter . | . . . Parts Self-Destructed . | . . . Prevented . | . . . Kills | -11 -10 -9 ------- Run | Yrd Mat Mat Combat Hostiles Destroyed 26 | . 6 20 Guns 16 | . 3 13 Cannons 8 | . 1 7 AOE 2 | . 2 . Classes Destroyed 9 | . 4 5 Worker 2 | . . 2 Builder 1 | . . 1 Hauler 4 | . 1 3 Recycler 5 | . . 5 Watcher 1 | . 1 . Swarmer 13 | . 3 10 Grunt 8 | . 3 5 Brawler 1 | . . 1 Sentry 4 | . . 4 Best Kill Streak 8 | . 3 8 Combat Bots Only 7 | . 3 7 Max Kills in Single Turn 2 | . 2 1 Gunslinging . | . . . Exploded 2 | . 2 . Melee . | . . . Uniques/NPCs Destroyed . | . . . Combat | -11 -10 -9 -------- Run | Yrd Mat Mat Hostile Shots Fired 254 | . 31 223 Missed 63 | . 7 56 Damage Taken 2069 | . 257 1812 Core 442 | . 38 404 Absorbed by Shields . | . . . Core Remaining (%) 92 | 100 84 . Volleys Fired 156 | . 31 125 Largest 2 | . 2 2 Hottest 80 | . 80 79 Shots Fired 254 | . 50 204 Gun 175 | . 37 138 Cannon 79 | . 13 66 Launcher . | . . . Special . | . . . Kinetic 205 | . 26 179 Thermal 25 | . . 25 Explosive . | . . . Electromagnetic 24 | . 24 . Robot Hit Streak 18 | . 6 18 Robot Miss Streak 8 | . 4 8 Penetration Max . | . . . Secondary Targets 3 | . . 3 Max Gunslinging Chain 1 | . . 1 Shots Hit Robots 150 | . 25 125 Core Hits 56 | . 12 44 Critical Kills . | . . . Critical Parts Destroyed 2 | . . 2 Critical Strikes 9 | . . 9 Burn 2 | . . 2 Destroy 2 | . . 2 Blast 5 | . . 5 Melee Attacks . | . . . Impact . | . . . Slashing . | . . . Piercing . | . . . Sneak Attacks . | . . . Combat Hostiles . | . . . Follow-up Attacks . | . . . Damage Inflicted 2593 | . 535 2058 Guns 1615 | . 265 1350 Cannons 831 | . 123 708 Explosions 147 | . 147 . Melee . | . . . Ramming . | . . . Kinetic 2006 | . 209 1797 Thermal 408 | . 147 261 Explosive . | . . . Electromagnetic 179 | . 179 . Impact . | . . . Slashing . | . . . Piercing . | . . . Highest Corruption 6 | . . 6 Average Corruption 6 | . . 6 Corruption Purged . | . . . Corruption Blocked . | . . . Effects 16 | . . 16 Message Errors 4 | . . 4 Matter Fused 2 | . . 2 Energy Discharges 3 | . . 3 Data Loss (minor) 1 | . . 1 Data Loss (major) 2 | . . 2 Misfires 1 | . . 1 Alerts 1 | . . 1 Weapon Failures 2 | . . 2 Overload Shots . | . . . Overflow Damage 22 | . 7 15 Projectiles 22 | . 7 15 Explosions . | . . . Melee . | . . . Knockbacks 8 | . 4 4 Impact . | . . . Kinetic 8 | . 4 4 Secondary . | . . . Self-Inflicted Damage 25 | . 25 . Shots 1 | . 1 . Rammed . | . . . Targets Rammed . | . . . Kicked . | . . . Crushed . | . . . Highest Temperature 151 | . 132 151 Average Temperature 52 | . 86 39 Received Heat Transfer 498 | . 60 438 Siege Activations . | . . . Robots Corrupted . | . . . Combat Hostiles . | . . . Parts Fried . | . . . Impact Corruptions . | . . . Robots Melted . | . . . Combat Hostiles . | . . . Parts Melted 2 | . . 2 Heat Transferred 1014 | . 200 814 Parts Sabotaged . | . . . Parts Stolen . | . . . Parts Stripped . | . . . Power Chain Reactions 2 | . 2 . Alert | -11 -10 -9 ------- Run | Yrd Mat Mat Peak Influence 440 | . 192 440 Initial 80 | . . 80 Average 238 | . 110 293 Maximum Alert Level 2 | . . 2 Low Security (%) 39 | 100 100 13 Level 1 58 | . . 83 Level 2 2 | . . 3 Level 3 . | . . . Level 4 . | . . . Level 5 . | . . . High Security . | . . . Max Security . | . . . Squads Dispatched 2 | . 1 1 Investigation 1 | . . 1 Extermination . | . . . Reinforcement 1 | . 1 . Assault . | . . . Garrison . | . . . Intercept . | . . . Searches Triggered . | . . . Construction Impeded . | . . . Haulers Reinforced . | . . . Active Scanning Responses . | . . . Cargo Convoy Interrupts . | . . . Stealth | -11 -10 -9 --------- Run | Yrd Mat Mat Distress Signals 4 | . 1 3 Communications Jammed . | . . . Distress Signals . | . . . Times Spotted 53 | . 14 39 Peak Tracking Total 8 | . 5 8 Tactical Retreats 2 | . . 2 Traps | -11 -10 -9 ------- Run | Yrd Mat Mat Traps Triggered 1 | . . 1 Indirectly . | . . . Trap Hack Attempts . | . . . Triggered . | . . . Disarmed . | . . . Reprogrammed . | . . . Reused . | . . . Traps Extracted . | . . . Installed . | . . . Triggered . | . . . Machines | -11 -10 -9 ---------- Run | Yrd Mat Mat Machines Disabled 3 | . . 3 Max in Single Turn 1 | . . 1 Machines Repaired . | . . . Machines Dismantled . | . . . Machines Sabotaged . | . . . Overloaded Fab Kills . | . . . Hacking | -11 -10 -9 --------- Run | Yrd Mat Mat Machines Accessed 5 | . 1 4 Terminals 3 | . 1 2 Fabricators . | . . . Repair Stations . | . . . Recycling Units 1 | . . 1 Scanalyzers 1 | . . 1 Garrison Access . | . . . Total Hacks 20 | . 3 17 Successful 11 | . . 11 Failed 9 | . 3 6 Catastrophic 2 | . . 2 Database Lockouts . | . . . Manual 9 | . 3 6 Terminals 9 | . 3 6 Fabricators . | . . . Repair Stations . | . . . Recycling Units 1 | . . 1 Scanalyzers 10 | . . 10 Garrison Access . | . . . Terminal Hacks . | . . . Fabricator Hacks . | . . . Repair Station Hacks . | . . . Recycling Unit Hacks . | . . . Scanalyzer 9 | . . 9 Insert Component 4 | . . 4 Analyze 5 | . . 5 Garrison Access Hacks . | . . . Unauthorized Hacks 2 | . . 2 Terminals 2 | . . 2 Botnet 2 | . . 2 Fabricators . | . . . Repair Stations . | . . . Recycling Units . | . . . Scanalyzers . | . . . Garrison Access . | . . . Data Cores Recovered . | . . . Used . | . . . Hacking Detections 5 | . 1 4 Full Trace Events 1 | . . 1 Feedback Events . | . . . Feedback Blocked . | . . . Robot Schematics Acquired . | . . . Robots Built . | . . . Authchips . | . . . Time . | . . . Total Robot Build Rating . | . . . Part Schematics Acquired 4 | . . 4 Parts Built . | . . . Authchips . | . . . Time . | . . . Total Part Build Rating . | . . . Parts Repaired . | . . . Time . | . . . Parts Recycled . | . . . Recycled Matter . | . . . Retrieved Matter . | . . . Retrieved Components . | . . . Parts Scanalyzed 4 | . . 4 Part Schematics Acquired 4 | . . 4 Parts Damaged . | . . . Bothacking | -11 -10 -9 ------------ Run | Yrd Mat Mat Used RIF Installer . | . . . Robots Hacked . | . . . Non-combat . | . . . Combat . | . . . Robot Hacks Applied . | . . . Relay Couplers Released . | . . . Fabnet Peak Effective % . | . . . Robots Rewired . | . . . Allies Hacked . | . . . Hacks Repelled . | . . . Allies | -11 -10 -9 -------- Run | Yrd Mat Mat Total Allies . | . . . Largest Group . | . . . Highest-Rated Group . | . . . Highest-Rated Ally . | . . . Total Orders . | . . . Ally Attacks . | . . . Total Damage . | . . . Kills . | . . . Allies Corrupted . | . . . Allies Melted . | . . . Intel | -11 -10 -9 ------- Run | Yrd Mat Mat Robot Analysis Total . | . . . Derelict Logs Recovered . | . . . Drone Launches . | . . . Drone Recoveries . | . . . Exploration | -11 -10 -9 ------------- Run | Yrd Mat Mat Turns Passed 1218 | 4 360 854 Spaces Moved 652 | 1 253 398 Core . | . . . Treads 14 | . . 14 Legs 45 | 1 44 . Wheels 593 | . 209 384 Hover . | . . . Flight . | . . . Fastest Speed 90 | 120 90 90 Average Speed 109 | 120 95 117 Slowest Speed 240 | 120 120 240 Overloaded Moves . | . . . Propulsion Burnouts . | . . . Robots Hopped . | . . . Cave-ins Triggered . | . . . Exploration Rate (%) 31 | 2 50 42 Regions Visited 2 Branch Regions . Pre-discovered Areas . | . . . Known Exits Taken . | . . . Unknown Exits Taken 2 | 1 1 . Scrap Searched . | . . . Spaces Dug . | . . . Terrain Destroyed 8 | . 8 . Melee . | . . . Projectile . | . . . AOE 8 | . 8 . Terrain Rammed . | . . . Walls Destroyed . | . . . Machines Disabled . | . . . Actions | -11 -10 -9 --------- Run | Yrd Mat Mat Total 911 | 4 323 584 Wait 19 | . 15 4 Move 650 | . 252 398 Hop . | . . . Pick Up 38 | 1 11 26 Fast Attach 4 | . 2 2 Attach 14 | 1 2 11 Detach . | . . . Swap 10 | 1 3 6 Drop 20 | 1 7 12 Fire 156 | . 31 125 Melee . | . . . Ram . | . . . Kick . | . . . Crush . | . . . Escape Stasis . | . . . Rewire . | . . . Trap . | . . . Miscellaneous . | . . . Route ------- -11/Scrapyard -10/Materials (discovered 2 exits: *Mat / [*Min]) -9/Materials (discovered 3 exits: [*Min x2] / [*Sto]) History --------- Turn | Location | Event 5 | -11/Scrapyard | Discovered new exit (range 0) 5 | -11/Scrapyard | Entered Materials 204 | -10/Materials | Discovered new exit (range 11) 308 | -10/Materials | Build established: Mutant 318 | -10/Materials | Discovered new exit (range 14) 365 | -10/Materials | Entered another Materials area 365 | -9/Materials | Evolved 2 slots: Propulsion x2 390 | -9/Materials | Discovered new exit (range 13) 662 | -9/Materials | Discovered new exit (range 12) 727 | -9/Materials | Core integrity fell below 50% 781 | -9/Materials | Lost 5 parts (3n2w) 788 | -9/Materials | Destroyed 7 combat bots 988 | -9/Materials | Core integrity fell below 20% 1178 | -9/Materials | Discovered new exit (range 12) 1191 | -9/Materials | Build established: Scavenger-Mutant 1219 | -9/Materials | Destroyed by Y-45 Defender with Heavy Assault Rifle Last Messages --------------- 01178_ EXIT=FOUND 01182_ S-10 Pest destroyed. 01182_ Switching to secondary target: Y-45 Defender. 01185_ 39OJCP:#&JDXN44RDJ,TPQDEYQ:7R VRE%&J 01188_ S-10 Pest suffers critical hit (Burn). 01188_ S-10 Pest destroyed. 01188_ Switching to secondary target: Y-45 Defender. 01191_ S-10 Pest destroyed. 01194_ Heat Sink melted. 01194_ Y-45 Defender destroyed. 01194_ Switching to secondary target: Y-45 Defender. 01200_ U-05 Engineer destroyed. 01204_ System corrupted: Energy discharge (-159). 01208_ Critical hit (Burn: +37). 01211_ Acquired 19 matter. 01213_ Lgt. Treads destroyed. Map ----- +----------------------------------------------------+ | | | | | | | | | | | | | | | | | | | | | ?????????????????????????????????????????????????? | | ?????????????????????????????????????????????????? | | ?????????????????????????????????????????????????? | | ???????????????????##????????????????????????????? | | ???????????????????# ????????????????????????????? | | ???????????????????# "???????????????????????????? | | ???????????????????# ???????????????????????????? | | ???????????????????? ??????????????????????????? | | ????????????????????? ??????????????????????????? | | ?????????????????????? ?????????######??????????? | | ????????????????????###+###????? #??????????? | | ????????????????????# ##### #??????????? | | ????????????######### ^ ! #??????????? | | ???????????? T * * [%< #??????????? | | ?????????????????#### ==! ^=%%*= #??????????? | | ????????????????????# Y@##### %= #??????????? | | ????????????????????### ###??????? #??????????? | | ??????????????????????# #?????????????#??????????? | | ??????????????????????# #????????????????????????? | | ??????????????????????# #????????????????????????? | | ##????????############# ####?????????????????????? | | #????????# +?????????????????????? | | #????????# ############## #?????????????????????? | | ######???# #??????????????#?????????????????????? | | + #???# #????????????????????????????????????? | | # #???# #????????????????????????????????????? | | # ##### #### ######??????????????????????????? | | ## / !!! +?????????????????????????? | | ?# ### !!! #?????????????????????????? | | ?# #?? !!| #?????????????????????????? | | ?# #??? #?????????????????????????? | | ?##########+#??? #?????????????????????????? | | ?#######????????? """ #?????????????????????????? | | ? #????????? """ #?????????????????????????? | | #?????????? """ #?????????????????????????? | | #?????????? ???????????????????????????? | | #?????????##+#########??#?????????????????? | | #????????? # #?????????????????? | | #?????????# # """ """ #????????? ???????? | | / #?????????# # """ """ #????????# ???? ?? | +----------------------------------------------------+ Best States ------------- Heat Dissipation 28 Energy Generation 14 Energy Capacity 530 Matter Stores 300 Matter Capacity 300 Sight Range 16 Terrain Scan Density 10 Evasion (%) 55 Recoil Reduction 1 Item Schematics ----------------- Hcp. Matter Pod | -9/Materials | Scanalyzed Rnf. Ion Engine | -9/Materials | Scanalyzed Beam Rifle | -9/Materials | Scanalyzed Hcp. Battery | -9/Materials | Scanalyzed Robot Schematics ------------------ None Fabricated ------------ Nothing Alien Tech Used ----------------- None Achievements -------------- None Challenges ------------ None Game ------ Seed CommSalvageClaymores Manual? 0 Play Time 00:15:25 Cumulative 209.6 hours Start 2024.06.06 @ 16:05:35 End 2024.06.08 @ 11:03:20 Sessions 4 Manual Loads 0 Difficulty Rogue Special Mode None Game No. 380 Rogue 380 Adventurer 0 Explorer 0 Win Type - Total 0 Types 0/0/0/0/0/0/0/0/0 Lore% 45 Gallery% 56 Achievement% 39 Wizard Run 0 Options --------- Layout 1 ASCII 0 Keyboard 0 Movement Mouse Keybinds 0 Fullscreen 1 Font 24/Smallcaps Map View 50x40 Zoom Use 0% Tactical HUD 1 Map Filters NONE Filters NONE Steam 1 RUN: 75f4fbf4-dfc7-4133-a037-21aa2fe523e2